bitfinex-derivatives/quotes_ETHF0:USTF0_20250410
["timestamp","ask_amount","ask_price","bid_price","bid_amount"]
[1744274096159,0.00944019,1589.1,1589.0,4.7415]
[1744274096772,1.26836019,1589.1,1589.0,4.7415]
[1744274097068,0.00944019,1589.1,1589.0,4.7415]
[1744274097772,1.2587,1589.4,1589.3,1.25876]
[1744274097966,1.2587,1589.4,1589.3,4.46656]
[1744274098168,9.64697359,1589.6,1589.3,4.46656]
[1744274098368,1.25868,1589.4,1589.3,4.46656]
[1744274098672,10.90552359,1589.6,1589.4,1.25862]
[1744274098867,0.00944019,1589.5,1589.4,1.25862]
[1744274099063,0.00944019,1589.5,1589.4,4.46642]
[1744274099469,1.26804019,1589.5,1589.4,3.2078]
[1744274099771,1.25882,1589.3,1589.2,3.2078]
[1744274099971,0.00944019,1589.5,1589.2,3.2078]
[1744274100272,0.00944019,1589.5,1589.0,56.86067]
[1744274100273,1.26811019,1589.5,1589.4,3.2078]
[1744274100468,0.00944019,1589.5,1589.4,4.46648]
[1744274101273,1.25868,1589.4,1589.3,1.6683]
[1744274101475,1.25868,1589.4,1589.3,2.92706]
[1744274101771,0.00944019,1589.5,1589.4,1.25868]
[1744274101961,1.0611,1590.0,1589.5,3.14651]
[1744274102165,12.79233359,1590.1,1589.8,3.2078]
[1744274102473,1.25829,1589.9,1589.8,3.2078]
[1744274102673,1.25829,1589.9,1589.8,9.46617]
[1744274102872,12.79233359,1590.1,1589.6,3.2078]
[1744274103073,3.14559,1590.0,1589.6,4.46628]
[1744274103371,1.25836,1589.9,1589.7,1.26783019]
[1744274103570,1.25836,1589.9,1589.8,3.2078]
[1744274103771,1.25837,1589.8,1589.7,1.26786019]
[1744274103973,1.25837,1589.8,1589.7,0.00944019]
[1744274105072,4.13856,1590.1,1589.7,1.26786019]
[1744274105277,1.25834,1589.9,1589.8,3.2078]
[1744274105480,1.25834,1589.9,1589.8,4.8482]
[1744274105676,0.9932,1590.1,1589.8,4.8482]
[1744274105870,1.25824,1590.0,1589.9,2.89865]
[1744274106173,1.25817,1590.1,1590.0,1.25821]
[1744274106475,1.25821,1590.0,1589.9,1.6404]
[1744274107480,1.28511,1590.0,1589.9,1.6404]
[1744274108278,1.25821,1590.0,1589.9,1.6404]
[1744274109774,7.51117934,1590.1,1589.9,7.89869]
[1744274109972,4.85298934,1590.1,1590.0,4.46601]
[1744274110274,4.85298934,1590.1,1590.0,6.12321]
[1744274111073,4.85298934,1590.1,1590.0,11.12321]
[1744274111974,0.02098934,1590.1,1590.0,17.11921]
[1744274112173,9.64697359,1590.4,1590.3,1.25797]
[1744274112370,9.64697359,1590.4,1590.3,4.46577]
[1744274112566,9.64697359,1590.4,1590.3,9.46577]
[1744274112770,9.64697359,1590.4,1590.3,17.02407]
[1744274113176,9.64697359,1590.4,1590.3,6.02807]
[1744274114183,1.25779,1590.6,1590.4,1.25783]
[1744274114382,1.25779,1590.6,1590.5,4.46561]
[1744274114982,1.25779,1590.6,1590.5,3.2078]
[1744274115386,1.25768,1590.7,1590.6,1.25773]
[1744274115580,1.25768,1590.7,1590.6,2.87903]
[1744274115779,11.03927359,1590.8,1590.7,1.25766]
[1744274115970,9.64697359,1590.8,1590.7,4.7901]
[1744274116175,10.90455359,1590.8,1590.7,3.2078]
[1744274116477,9.64697359,1590.8,1590.7,4.46546]
[1744274116787,1.25766,1590.7,1590.6,0.00944019]
[1744274116976,1.5712,1590.7,1590.6,3.21724019]
[1744274117281,1.5712,1590.7,1590.6,6.05727019]
[1744274117676,9.64697359,1590.8,1590.7,1.25766]
[1744274117878,10.90455359,1590.8,1590.7,1.5823]
[1744274118079,1.25766,1590.7,1590.6,3.21724019]
[1744274118385,1.5712,1590.7,1590.6,4.47497019]
[1744274118579,1.5712,1590.7,1590.6,4.79954019]
[1744274119084,2.82886,1590.7,1590.6,4.79954019]
[1744274119482,9.64697359,1590.8,1590.6,4.79954019]
[1744274119682,9.64697359,1590.8,1590.7,2.87246]
[1744274119985,9.64697359,1590.8,1590.6,4.47492019]
[1744274119986,1.25766,1590.7,1590.6,4.47492019]
[1744274120185,2.89946,1590.7,1590.6,6.08972019]
[1744274120394,1.6418,1590.7,1590.6,6.08972019]
[1744274120689,2.89946,1590.7,1590.6,6.08972019]
[1744274120886,1.6418,1590.7,1590.6,6.08972019]
[1744274121886,2.89946,1590.7,1590.6,4.83204019]
[1744274122088,1.25757,1590.9,1590.6,4.83204019]
[1744274122279,1.25757,1590.9,1590.8,4.46538]
[1744274122484,7.09138,1591.1,1591.0,1.25742]
[1744274122780,1.25742,1591.0,1590.9,2.89024]
[1744274122980,7.0914,1591.1,1591.0,1.25742]
[1744274123181,8.7944,1591.1,1591.0,6.09802]
[1744274123386,8.7944,1591.1,1591.0,4.8406]
[1744274123789,8.7944,1591.1,1591.0,6.09802]
[1744274124091,1.2573,1591.2,1591.0,4.8406]
[1744274124287,1.2573,1591.2,1591.1,1.6328]
[1744274124586,1.2573,1591.2,1591.1,2.89014]
[1744274124890,2.76453,1591.3,1591.2,1.25726]
[1744274125084,11.27347359,1591.4,1591.2,4.8582]
[1744274125286,1.5039,1591.5,1591.2,4.8582]
[1744274125287,1.25718,1591.3,1591.2,4.8582]
[1744274125588,2.88368,1591.3,1591.2,3.2078]
[1744274126186,1.6265,1591.3,1591.0,6.11556]
[1744274126397,4.76974,1591.2,1590.9,5.996]
[1744274126685,1.25742,1591.0,1590.9,5.996]
[1744274126891,1.25742,1591.0,1590.9,7.6464]
[1744274127591,1.2576,1590.8,1590.6,3.21724019]
[1744274127891,1.2576,1590.8,1590.6,4.47493019]
[1744274128091,1.25766,1590.7,1590.6,4.47493019]
[1744274128289,4.69797,1591.1,1590.6,3.21724019]
[1744274128492,4.69797,1591.1,1590.8,3.2078]
[1744274128493,1.2575,1590.9,1590.8,3.2078]
[1744274128684,1.25766,1590.7,1590.6,3.21724019]
[1744274129487,1.25766,1590.7,1590.6,0.00944019]
[1744274129885,2.81136,1590.7,1590.6,3.21724019]
[1744274130093,1.25766,1590.7,1590.6,3.21724019]
[1744274130293,1.25766,1590.7,1590.6,4.47497019]
[1744274130494,1.25766,1590.7,1590.6,6.10307019]
[1744274130991,1.25764,1590.8,1590.7,1.25766]
[1744274131292,1.25746,1591.0,1590.8,1.25757]
[1744274131595,1.2574,1591.1,1590.9,6.1722]
[1744274131796,1.2574,1591.1,1591.0,1.7069]
[1744274131986,2.8315,1591.1,1591.0,1.7069]
[1744274132289,1.25742,1591.0,1590.9,3.2078]
[1744274132593,2.83152,1591.0,1590.9,3.2078]
[1744274132996,1.2575,1590.9,1590.8,1.7069]
[1744274133186,2.8316,1590.9,1590.8,1.7069]
[1744274133392,1.2575,1590.9,1590.8,1.7069]
[1744274134088,1.25758,1590.8,1590.7,9.2038]
[1744274134286,8.79318,1590.8,1590.7,3.2078]
[1744274134484,1.25766,1590.7,1590.6,0.00944019]
[1744274134690,1.25773,1590.6,1590.5,3.2078]
[1744274134899,1.25797,1590.3,1590.2,4.836]
[1744274135698,1.25821,1590.0,1589.9,1.638]
[1744274136588,1.25821,1590.0,1589.8,0.00944019]
[1744274136589,1.25829,1589.9,1589.8,0.00944019]
[1744274136987,2.87579,1589.9,1589.8,0.00944019]
[1744274138698,3.2078,1590.0,1589.8,0.00944019]
[1744274139000,1.25829,1589.9,1589.8,0.00944019]
[1744274139193,2.87579,1589.9,1589.8,0.00944019]
[1744274140695,1.25829,1589.9,1589.8,0.00944019]
[1744274141098,1.25829,1589.9,1589.8,1.66194019]
[1744274142108,4.46604,1590.0,1589.8,2.92027019]
[1744274142298,1.25829,1589.9,1589.8,3.26314019]
[1744274142496,1.25829,1589.9,1589.8,1.61064019]
[1744274143498,1.25829,1589.9,1589.8,2.86901019]
[1744274143698,4.46606,1590.0,1589.8,7.86901019]
[1744274143898,1.25829,1589.9,1589.8,1.61064019]
[1744274144501,1.25829,1589.9,1589.8,6.61064019]
[1744274144700,1.25824,1590.0,1589.9,1.25828]
[1744274144900,1.25824,1590.0,1589.8,2.86894019]
[1744274145106,1.25824,1590.0,1589.9,1.25829]
[1744274145306,7.4601,1590.2,1589.9,1.25822]
[1744274145706,1.25821,1590.0,1589.9,1.25822]
[1744274146107,1.25821,1590.0,1589.8,6.07676019]
[1744274146309,1.25817,1590.1,1589.8,4.81844019]
[1744274146503,1.25817,1590.1,1589.9,1.25822]
[1744274146711,1.25821,1590.0,1589.9,1.25822]
[1744274147114,1.25817,1590.1,1589.9,1.25822]
[1744274147311,1.25817,1590.1,1590.0,1.25821]
[1744274147511,3.14479,1590.4,1590.0,1.25817]
[1744274147709,3.14494,1590.3,1589.9,7.25424]
[1744274147913,1.2582,1590.1,1589.9,7.25424]
[1744274148307,1.25821,1590.0,1589.9,5.996]
[1744274148608,1.25827,1590.0,1589.8,4.81844019]
[1744274148808,1.25821,1590.0,1589.9,1.25825]
[1744274149006,3.2078,1590.2,1589.9,1.25825]
[1744274149007,1.25816,1590.1,1589.9,1.25825]
[1744274149323,1.25825,1590.0,1589.8,6.07678019]
[1744274149615,1.25826,1590.0,1589.8,6.07678019]
[1744274150014,1.25829,1589.9,1589.8,6.07678019]
[1744274150309,1.25826,1590.0,1589.9,1.25829]
[1744274150516,1.25815,1590.1,1589.8,4.81844019]
[1744274150712,1.25821,1590.0,1589.9,1.25823]
[1744274150913,1.25815,1590.1,1590.0,1.25818]
[1744274151410,6.35298,1590.2,1589.8,4.81844019]
[1744274151614,3.2078,1590.2,1589.9,1.25825]
[1744274151813,1.25829,1589.9,1589.8,0.00944019]
[1744274152212,7.80329,1589.9,1589.8,0.00944019]
[1744274152911,1.5574,1590.1,1589.8,3.21724019]
[1744274153113,3.2078,1590.3,1589.9,1.6413]
[1744274153319,6.35275,1590.3,1589.9,4.54553]
[1744274153508,7.89775,1590.3,1589.9,4.54553]
[1744274153712,1.25821,1590.0,1589.9,3.2873]
[1744274154416,1.25829,1589.9,1589.8,0.00944019]
[1744274154617,1.25827,1590.0,1589.8,1.26781019]
[1744274154915,4.69014,1590.2,1589.8,0.00944019]
[1744274154916,1.25829,1589.9,1589.8,0.00944019]
[1744274157113,1.25829,1589.9,1589.8,1.26781019]
[1744274157417,1.25829,1589.9,1589.8,0.00944019]
[1744274157720,1.25829,1589.9,1589.8,1.26781019]
[1744274158116,9.64697359,1590.1,1589.8,4.47561019]
[1744274158320,1.25825,1590.0,1589.8,3.21724019]
[1744274158512,1.25825,1590.0,1589.8,4.47555019]
[1744274159021,1.25829,1589.9,1589.8,0.00944019]
[1744274159422,1.25829,1589.9,1589.8,1.55194019]
[1744274161012,1.25823,1590.0,1589.9,1.25826]
[1744274161328,1.25829,1589.9,1589.8,1.55194019]
[1744274162526,9.46609,1589.9,1589.8,0.00944019]
[1744274162724,9.46609,1589.9,1589.8,1.9e-07]
[1744274163224,11.03109,1589.9,1589.8,1.9e-07]
[1744274163816,1.25868,1589.4,1589.3,1.6448]
[1744274164020,3.14677,1589.4,1588.9,19.05367097]
[1744274164224,1.25889,1589.2,1589.0,2.90377]
[1744274164525,1.25874,1589.4,1589.2,1.25882]
[1744274164727,3.3027,1589.6,1589.3,6.15079]
[1744274164918,1.25876,1589.3,1589.2,5.996]
[1744274165220,1.25884,1589.2,1589.1,0.00944019]
[1744274166125,14.10024,1589.2,1589.1,0.00944019]
[1744274166626,14.10024,1589.2,1589.1,1.9e-07]
[1744274169428,19.93424,1589.2,1589.1,1.9e-07]
[1744274169731,1.2594,1588.5,1588.4,1.5791]
[1744274170224,1.25971,1588.1,1588.0,9.77047097]
[1744274170424,1.25971,1588.1,1588.0,11.38127097]
[1744274170730,1.25971,1588.1,1588.0,16.38127097]
[1744274171031,4.46751,1588.1,1588.0,11.38127097]
[1744274171219,1.25971,1588.1,1588.0,11.38127097]
[1744274171419,3.2078,1588.9,1588.1,1.25971]
[1744274171727,3.2078,1588.9,1588.5,3.2078]
[1744274171924,1.25919,1588.8,1588.6,3.2862]
[1744274172129,3.2078,1588.9,1588.7,1.25921]
[1744274172331,6.4401,1589.2,1588.6,3.2862]
[1744274172524,1.25915,1588.9,1588.7,3.2078]
[1744274172729,1.25916,1588.8,1588.7,3.2078]
[1744274173031,10.90603359,1589.0,1588.7,4.47648019]
[1744274173231,10.90603359,1589.0,1588.8,1.25915]
[1744274173528,9.64697359,1589.0,1588.8,1.25915]
[1744274174215,10.90598359,1589.0,1588.7,9.21324019]
[1744274174420,10.90598359,1589.0,1588.8,1.25916]
[1744274174821,1.2591,1588.9,1588.7,9.21324019]
[1744274175021,10.90603359,1589.0,1588.7,9.21324019]
[1744274175221,10.90603359,1589.0,1588.7,10.47243019]
[1744274175831,9.64697359,1589.0,1588.8,1.25915]
[1744274176026,0.00944019,1589.1,1588.9,3.2078]
[1744274176327,0.00944019,1589.1,1589.0,3.1842]
[1744274176523,0.00944019,1589.1,1589.0,4.4432]
[1744274177522,0.00944019,1589.1,1589.0,9.4432]
[1744274178425,0.00944019,1589.1,1589.0,4.4432]
[1744274178829,1.26836019,1589.1,1589.0,3.1842]
[1744274179335,0.00944019,1589.1,1589.0,4.4432]
[1744274179533,0.00944019,1589.1,1589.0,6.0071]
[1744274180330,1.26836019,1589.1,1589.0,6.0071]
[1744274180631,0.00944019,1589.1,1589.0,6.0071]
[1744274181533,0.00944019,1589.1,1589.0,11.0071]
[1744274181735,0.00944019,1589.1,1589.0,12.0031]
[1744274182428,0.00944019,1589.1,1589.0,17.0031]
[1744274182929,1.2586,1589.5,1589.3,1.2587]
[1744274183122,1.2586,1589.5,1589.4,1.6138]
[1744274184136,1.25868,1589.4,1589.3,9.2038]
[1744274184335,1.25868,1589.4,1589.3,7.6098]
[1744274184834,1.25867,1589.5,1589.3,8.86853]
[1744274185028,1.25867,1589.5,1589.4,1.6138]
[1744274186829,1.25876,1589.3,1589.2,8.2555]
[1744274187632,1.259,1589.0,1588.9,4.642]
[1744274187830,2.2774,1589.2,1588.9,1.25908]
[1744274188038,1.25905,1589.0,1588.8,10.5296]
[1744274188236,2.2774,1589.2,1588.9,1.25905]
[1744274188436,1.259,1589.1,1588.9,1.25905]
[1744274188938,5.38462,1589.4,1589.0,6.61828]
[1744274189135,2.2379,1589.4,1589.1,3.41039]
[1744274189338,0.00944019,1589.6,1589.2,2.1515]
[1744274189638,1.25876,1589.3,1589.2,4.2973]
[1744274190038,1.25866,1589.5,1589.2,12.5051]
[1744274190234,1.26801019,1589.6,1589.4,1.25868]
[1744274190444,1.26801019,1589.6,1589.5,2.1515]
[1744274190628,1.2586,1589.5,1589.4,5.996]
[1744274190833,3.4965,1589.5,1589.4,8.1475]
[1744274193438,1.2586,1589.5,1589.4,8.1475]
[1744274194333,4.4664,1589.5,1589.4,5.996]
[1744274194731,9.4664,1589.5,1589.4,5.996]
[1744274194936,14.1074,1589.5,1589.4,5.996]
[1744274195759,1.25876,1589.3,1589.2,2.121]
[1744274197638,3.2078,1589.3,1589.0,5.996]
[1744274197847,1.259,1589.0,1588.9,2.1481]
[1744274198839,1.25895,1589.1,1588.9,6.61492]
[1744274199038,1.25888,1589.2,1589.0,1.259]
[1744274199245,2.233,1589.3,1589.0,5.5976]
[1744274199447,1.25886,1589.2,1589.0,5.59753]
[1744274199648,1.25886,1589.2,1589.1,2.1481]
[1744274200048,1.25886,1589.2,1589.1,6.61482]
[1744274200245,1.25865,1589.5,1589.3,1.25873]
[1744274200447,1.25865,1589.5,1589.4,2.1481]
[1744274201342,1.25892,1589.1,1589.0,2.1905]
[1744274201541,1.25892,1589.1,1589.0,5.3983]
[1744274201745,1.259,1589.0,1588.9,5.996]
[1744274202648,1.259,1589.0,1588.9,8.1325]
[1744274203352,1.259,1589.0,1588.9,9.39158]
[1744274203545,1.25894,1589.1,1588.9,8.1325]
[1744274203750,4.4988,1589.4,1589.0,5.3443]
[1744274203940,1.25886,1589.2,1589.1,2.1949]
[1744274205353,1.259,1589.0,1588.9,5.996]
[1744274205546,1.259,1589.0,1588.9,8.1909]
[1744274206059,1.25908,1588.9,1588.8,9.2038]
[1744274206353,1.25908,1588.9,1588.8,11.3987]
[1744274206955,5.51934,1589.0,1588.8,11.3987]
[1744274207141,1.25904,1589.0,1588.9,2.2629]
[1744274207556,1.25895,1589.1,1588.9,3.52198]
[1744274207751,1.25895,1589.1,1589.0,2.2629]
[1744274208648,4.46669,1589.2,1589.0,2.2629]
[1744274208853,1.25889,1589.2,1589.0,6.72964]
[1744274209355,1.25889,1589.2,1589.1,2.2629]
[1744274209554,1.2588,1589.3,1589.1,3.52178]
[1744274209854,8.53164715,1589.3,1589.2,2.2629]
[1744274210056,8.53164715,1589.3,1589.2,3.52174]
[1744274210254,7.27284715,1589.3,1589.2,6.72954]
[1744274211057,8.53160715,1589.3,1589.2,6.72954]
[1744274211656,7.27284715,1589.3,1589.2,6.72954]
[1744274211953,8.53160715,1589.3,1589.2,6.72954]
[1744274212460,7.27284715,1589.3,1589.2,6.72954]
[1744274212657,7.27284715,1589.3,1589.2,11.33954]
[1744274212958,7.27284715,1589.3,1589.2,22.33554]
[1744274213145,9.64697359,1589.4,1589.3,1.25876]
[1744274213349,9.64697359,1589.4,1589.3,5.44196]
[1744274213554,9.64697359,1589.4,1589.3,10.44196]
[1744274213753,10.90565359,1589.4,1589.3,10.44196]
[1744274213957,9.64697359,1589.4,1589.3,10.44196]
[1744274214157,9.64697359,1589.4,1589.3,5.44196]
[1744274214351,10.90565359,1589.4,1589.3,4.1832]
[1744274214544,1.25868,1589.4,1589.3,4.1832]
[1744274216448,1.25868,1589.4,1589.3,5.44196]
[1744274216651,1.25868,1589.4,1589.3,4.1832]
[1744274216866,1.25868,1589.4,1589.3,2.1131]
[1744274217955,3.35197,1589.5,1589.3,3.37186]
[1744274218156,1.25868,1589.4,1589.3,2.1131]
[1744274218353,0.00944019,1589.6,1589.5,1.2586]
[1744274218559,0.00944019,1589.6,1589.3,2.1131]
[1744274218756,1.25861,1589.5,1589.4,1.25868]
[1744274219160,1.25861,1589.5,1589.3,3.37179]
[1744274219361,0.00944019,1589.6,1589.4,3.2078]
[1744274219562,0.00944019,1589.6,1589.5,1.2586]
[1744274219758,0.00944019,1589.6,1589.5,5.7771]
[1744274219961,1.26797019,1589.6,1589.5,4.5185]
[1744274220156,0.00944019,1589.6,1589.5,5.7771]
[1744274220556,0.00944019,1589.6,1589.5,11.7731]
[1744274220753,0.00944019,1589.6,1589.5,14.0803]
[1744274221654,0.00944019,1589.6,1589.5,59.8803]
[1744274222865,0.00944019,1589.6,1589.5,54.8803]
[1744274223254,1.26797019,1589.6,1589.5,59.4903]
[1744274223460,0.00944019,1589.6,1589.5,59.4903]
[1744274223666,1.26797019,1589.6,1589.5,59.4903]
[1744274223966,1.26797019,1589.6,1589.5,12.9342]
[1744274224460,1.25876,1589.3,1589.2,5.996]
[1744274224658,1.25892,1589.1,1589.0,21.32257097]
[1744274225256,3.61602,1589.1,1589.0,21.32257097]
[1744274226062,2.4003,1589.2,1589.0,21.32257097]
[1744274226266,3.65914,1589.2,1589.1,2.1945]
[1744274226555,1.25892,1589.1,1589.0,18.97427097]
[1744274226756,1.25892,1589.1,1589.0,15.76647097]
[1744274226962,6.25892,1589.1,1589.0,15.76647097]
[1744274227358,1.25892,1589.1,1589.0,15.76647097]
[1744274228269,1.25908,1588.9,1588.8,3.2078]
[1744274228672,1.25914,1588.9,1588.7,0.00944019]
[1744274228869,1.25914,1588.9,1588.7,2.39214019]
[1744274229060,6.82,1589.0,1588.7,3.65134019]
[1744274229261,3.46906,1589.0,1588.8,1.25915]
[1744274229469,2.21,1589.0,1588.9,2.3827]
[1744274229970,3.469,1589.0,1588.9,2.3827]
[1744274230269,3.469,1589.0,1588.7,5.87863019]
[1744274230270,1.25916,1588.8,1588.7,4.61944019]
[1744274230456,1.25914,1588.9,1588.7,2.39214019]
[1744274230665,1.25914,1588.9,1588.8,2.3827]
[1744274231560,1.25916,1588.8,1588.7,0.00944019]
[1744274232074,1.25916,1588.8,1588.7,2.34674019]
[1744274234671,1.25916,1588.8,1588.7,0.00944019]
[1744274236273,4.46696,1588.8,1588.7,0.00944019]
[1744274236769,6.81936,1588.8,1588.7,0.00944019]
[1744274237071,11.70315182,1588.8,1588.7,0.00944019]
[1744274237465,8.09159182,1588.8,1588.7,7.26468019]
[1744274237666,4.88379182,1588.8,1588.7,7.26468019]
[1744274238268,4.88379182,1588.8,1588.7,14.50238019]
[1744274239469,4.88379182,1588.8,1588.7,9.50238019]
[1744274240478,1.25913,1588.9,1588.8,1.25916]
[1744274240772,1.25913,1588.9,1588.8,6.63936]
[1744274241977,1.25906,1589.0,1588.9,1.25908]
[1744274242276,1.25906,1589.0,1588.9,3.43148]
[1744274243077,1.25906,1589.0,1588.9,2.1724]
[1744274244174,1.25906,1589.0,1588.9,3.43148]
[1744274244780,1.25906,1589.0,1588.9,2.1724]
[1744274246078,4.5786,1589.1,1588.8,3.2078]
[1744274246279,1.25908,1588.9,1588.8,2.2047]
[1744274246471,1.25916,1588.8,1588.7,6.00544019]
[1744274246670,1.25916,1588.8,1588.7,0.00944019]
[1744274246886,9.46696,1588.8,1588.7,0.00944019]
[1744274247070,14.05096,1588.8,1588.7,0.00944019]
[1744274247270,16.18556,1588.8,1588.7,1e-08]
[1744274247471,1.25956,1588.3,1588.2,15.76647097]
[1744274247876,1.25956,1588.3,1588.2,9.77047097]
[1744274248277,10.60626,1588.3,1588.2,9.77047097]
[1744274248578,13.81406,1588.3,1588.2,1.2e-07]
[1744274248780,18.3885,1588.3,1587.9,38.79595081]
[1744274248977,4.46759,1588.0,1587.9,37.31179081]
[1744274249375,9.46759,1588.0,1587.9,37.31179081]
[1744274249576,1.26011,1587.6,1587.5,20.78036872]
[1744274249780,1.26011,1587.6,1587.5,14.78436872]
[1744274250082,1.26011,1587.6,1587.5,17.05486872]
[1744274250279,1.26011,1587.6,1587.5,14.78436872]
[1744274251478,6.26011,1587.6,1587.5,14.78436872]
[1744274252076,7.25231,1587.6,1587.5,14.78436872]
[1744274252283,1.26011,1587.6,1587.5,14.78436872]
[1744274252472,1.26011,1587.6,1587.5,17.05486872]
[1744274252685,2.25231,1587.6,1587.5,17.05486872]
[1744274252981,3.2078,1588.0,1587.5,20.26266872]
[1744274253185,1.2598,1588.0,1587.7,4.46777]
[1744274253387,1.25982,1588.0,1587.8,2.1573]
[1744274253582,1.25987,1587.9,1587.8,2.1573]
[1744274253783,1.25984,1588.0,1587.8,2.1573]
[1744274254282,1.25984,1588.0,1587.8,8.1533]
[1744274254883,1.25984,1588.0,1587.9,2.1573]
[1744274255074,1.25984,1588.0,1587.9,5.3651]
[1744274255588,1.25984,1588.0,1587.9,2.1573]
[1744274256587,10.90673359,1588.1,1587.9,2.1573]
[1744274256789,9.64697359,1588.1,1587.9,6.62491]
[1744274257087,9.64697359,1588.1,1588.0,1.25979]
[1744274257274,9.64697359,1588.1,1588.0,7.69969]
[1744274257988,10.90668359,1588.1,1588.0,12.4359]
[1744274258190,10.90668359,1588.1,1588.0,8.1571]
[1744274258390,11.90038359,1588.1,1588.0,8.1571]
[1744274258883,10.90668359,1588.1,1588.0,8.1571]
[1744274259284,1.25971,1588.1,1588.0,8.1571]
[1744274259791,1.25966,1588.2,1588.0,9.41688]
[1744274260188,3.15815019,1588.4,1588.0,10.4434]
[1744274260490,1.25971,1588.1,1588.0,10.4434]
[1744274261787,1.25971,1588.1,1588.0,2.1611]
[1744274262090,1.25995,1587.8,1587.7,5.996]
[1744274262286,1.26019,1587.5,1587.4,0.00944019]
[1744274262990,14.05499,1587.5,1587.4,0.00944019]
[1744274263578,15.71089,1587.5,1587.4,0.00944019]
[1744274263784,15.71089,1587.5,1587.4,1.9e-07]
[1744274264082,6.30158,1587.4,1586.7,11.3374]
[1744274264289,1.26075,1586.8,1586.7,5.996]
[1744274264982,1.2607,1586.9,1586.7,5.996]
[1744274265190,1.26075,1586.8,1586.7,5.996]
[1744274265500,1.27016019,1586.9,1586.7,8.2651]
[1744274265795,1.27017019,1586.9,1586.7,8.2651]
[1744274265990,1.26075,1586.8,1586.7,8.2651]
[1744274266186,1.27015019,1586.9,1586.7,8.2651]
[1744274266386,1.26075,1586.8,1586.7,8.2651]
[1744274267388,0.00944019,1586.9,1586.7,8.2651]
[1744274267389,0.00944019,1586.9,1586.8,1.26075]
[1744274267589,0.00944019,1586.9,1586.8,5.75965]
[1744274267787,0.00944019,1586.9,1586.8,10.75965]
[1744274268097,1.26046,1587.2,1586.9,1.26064]
[1744274268288,1.26046,1587.2,1587.0,8.2551]
[1744274268484,1.26051,1587.1,1587.0,8.2551]
[1744274270296,1.26051,1587.1,1587.0,2.2591]
[1744274270799,2.25691,1587.1,1587.0,2.2591]
[1744274271091,1.26051,1587.1,1587.0,2.2591]
[1744274271296,0.00944019,1587.2,1587.0,2.2591]
[1744274271498,1.26051,1587.1,1587.0,2.2591]
[1744274271700,0.00944019,1587.2,1587.0,5.4669]
[1744274271901,0.00944019,1587.2,1587.1,7.25651]
[1744274272098,4.83990667,1587.5,1587.4,1.26027]
[1744274272293,9.64697359,1587.7,1587.5,1.26015]
[1744274272492,9.64697359,1587.7,1587.4,9.2038]
[1744274272696,1.26013,1587.6,1587.4,10.46405]
[1744274272898,1.26013,1587.6,1587.4,9.2038]
[1744274273194,1.26953019,1587.7,1587.4,9.2038]
[1744274273395,1.26012,1587.6,1587.4,10.46404]
[1744274273904,0.00944019,1587.7,1587.4,9.2038]
[1744274274199,0.00944019,1587.7,1587.6,4.46791]
[1744274274397,1.26947019,1587.7,1587.6,3.2078]
[1744274274696,1.26947019,1587.7,1587.6,9.2038]
[1744274274897,1.26947019,1587.7,1587.6,5.996]
[1744274275095,1.26027,1587.4,1587.3,0.00944019]
[1744274275498,1.26027,1587.4,1587.3,2.28364019]
[1744274276403,10.83327,1587.4,1587.3,0.00944019]
[1744274276701,14.04107,1587.4,1587.3,0.00944019]
[1744274278516,14.04107,1587.4,1587.3,1.9e-07]
[1744274278810,17.92187,1587.4,1587.3,1.9e-07]
[1744274280809,17.92187,1587.4,1586.6,5.996]
[1744274280810,1.26083,1586.7,1586.6,5.996]
[1744274281003,1.26106,1586.4,1586.3,2.1603]
[1744274281210,1.26106,1586.4,1586.3,5.3681]
[1744274281919,1.26106,1586.4,1586.3,2.1603]
[1744274282408,4.46886,1586.4,1586.3,2.1603]
[1744274282615,1.26114,1586.3,1586.2,0.00944019]
[1744274282815,3.59424,1586.3,1586.2,0.00944019]
[1744274283011,3.59424,1586.3,1586.2,2.16974019]
[1744274283208,1.26114,1586.3,1586.2,2.16974019]
[1744274284212,0.00944019,1586.5,1586.2,8.43095019]
[1744274284417,1.26107,1586.4,1586.3,2.3297]
[1744274285116,1.26114,1586.3,1586.2,2.16974019]
[1744274287715,0.00944019,1586.5,1586.2,7.16974019]
[1744274287914,0.00944019,1586.5,1586.3,4.46888]
[1744274288223,1.27042019,1586.5,1586.4,2.339]
[1744274289615,1.26114,1586.3,1586.2,2.34004019]
[1744274289820,1.26112,1586.4,1586.2,2.34004019]
[1744274290021,1.26114,1586.3,1586.2,2.34004019]
[1744274290216,0.00944019,1586.5,1586.2,11.54384019]
[1744274290422,0.00944019,1586.5,1586.4,1.26106]
[1744274290615,0.00944019,1586.5,1586.4,4.46886]
[1744274290922,0.00944019,1586.5,1586.4,6.79946]
[1744274291622,1.27042019,1586.5,1586.4,5.5384]
[1744274291923,0.00944019,1586.5,1586.4,17.79546]
[1744274292225,1.26075,1586.8,1586.6,1.26084]
[1744274292521,1.26075,1586.8,1586.7,7.6286]
[1744274292719,1.26075,1586.8,1586.7,13.6246]
[1744274292918,1.26062,1587.0,1586.7,18.6246]
[1744274293126,0.00944019,1586.9,1586.8,5.996]
[1744274293422,7.25254077,1587.1,1587.0,1.26059]
[1744274293620,8.51305077,1587.1,1587.0,4.46839]
[1744274293922,7.25254077,1587.1,1587.0,14.04339]
[1744274294113,8.51305077,1587.1,1587.0,8.2078]
[1744274294315,1.26067,1586.9,1586.8,9.2038]
[1744274294811,1.26067,1586.9,1586.8,5.996]
[1744274295314,1.26075,1586.8,1586.7,2.1429]
[1744274298123,3.48713,1587.0,1586.7,2.1429]
[1744274298421,7.78254019,1587.2,1586.7,3.40368]
[1744274298621,1.26063,1587.0,1586.8,7.25671]
[1744274298822,1.26063,1587.0,1586.8,5.996]
[1744274299421,1.26063,1587.0,1586.8,10.46454]